bitfinex-derivatives/quotes_BNBF0:USTF0_20250608
["timestamp","ask_amount","ask_price","bid_price","bid_amount"]
[1749424297354,0.983,651.96,650.96,0.30723854]
[1749424297559,1.0956612,651.95,650.96,0.30723854]
[1749424297757,1.0956612,651.94,650.96,0.30723854]
[1749424297961,1.0956612,651.93,650.96,0.30723854]
[1749424298163,1.0956612,651.92,650.96,0.30723854]
[1749424298457,1.0956612,651.91,650.96,0.30723854]
[1749424298659,1.0956612,651.9,650.96,0.30723854]
[1749424298865,0.983,651.96,650.96,0.30723854]
[1749424299063,1.09568225,651.95,650.96,0.30723854]
[1749424299263,1.09568225,651.94,650.96,0.30723854]
[1749424299461,1.09568225,651.93,650.96,0.30723854]
[1749424299665,1.09568225,651.92,650.96,0.30723854]
[1749424299864,1.09568225,651.91,650.96,0.30723854]
[1749424300164,0.983,651.96,650.96,0.30723854]
[1749424300367,1.09582359,651.95,650.96,0.30723854]
[1749424300562,1.09582359,651.94,650.96,0.30723854]
[1749424300766,1.09582359,651.93,650.96,0.30723854]
[1749424300967,1.09582359,651.92,650.96,0.30723854]
[1749424301265,1.09582359,651.91,650.96,0.30723854]
[1749424301464,0.983,651.96,650.96,0.30723854]
[1749424301664,1.09577782,651.95,650.96,0.30723854]
[1749424301967,1.09577782,651.94,650.96,0.30723854]
[1749424302167,1.09577782,651.93,650.96,0.30723854]
[1749424302369,1.09577782,651.92,650.96,0.30723854]
[1749424302564,1.09577782,651.91,650.96,0.30723854]
[1749424302769,0.983,651.96,650.96,0.30723854]
[1749424302969,1.0958098,651.95,650.96,0.30723854]
[1749424303170,1.0958098,651.94,650.96,0.30723854]
[1749424303465,1.0958098,651.93,650.96,4.09390462]
[1749424303667,1.0958098,651.92,650.96,4.09390462]
[1749424303866,1.0958098,651.91,650.96,4.09390462]
[1749424304067,0.983,651.96,650.96,4.09390462]
[1749424304271,1.09576196,651.95,650.96,4.09390462]
[1749424304570,1.09576196,651.94,650.96,4.09390462]
[1749424304866,0.983,651.96,650.96,4.09390462]
[1749424304867,1.09576196,651.93,650.96,4.09390462]
[1749424305165,0.983,651.96,650.96,4.09390462]
[1749424305166,1.09576196,651.92,650.96,4.09390462]
[1749424305468,0.983,651.96,650.96,4.09390462]
[1749424305667,1.09579886,651.95,650.96,4.09390462]
[1749424305869,1.09579886,651.94,650.99,3.78666608]
[1749424306069,1.09579886,651.93,651.0,0.30721966]
[1749424306369,1.09579886,651.92,651.0,0.30721966]
[1749424306672,0.983,651.96,651.02,3.78666608]
[1749424306870,1.09578626,651.95,651.03,0.3072055]
[1749424307071,1.09578626,651.94,651.03,0.3072055]
[1749424307270,1.09578626,651.93,651.03,0.3072055]
[1749424307467,1.09578626,651.92,651.03,0.3072055]
[1749424307667,0.983,651.96,651.03,0.3072055]
[1749424307867,1.09551732,651.95,651.03,0.3072055]
[1749424308070,1.09551732,651.94,651.03,0.3072055]
[1749424308271,1.09551732,651.93,651.03,0.3072055]
[1749424308471,1.09551732,651.92,651.03,0.3072055]
[1749424308672,0.983,651.96,651.03,0.3072055]
[1749424308871,1.09551378,651.95,651.03,0.3072055]
[1749424309073,1.09551378,651.94,651.03,0.3072055]
[1749424309372,1.09551378,651.93,651.03,0.3072055]
[1749424309674,1.09551378,651.92,651.03,0.3072055]
[1749424309973,0.983,651.96,651.03,0.3072055]
[1749424310173,1.09550498,651.95,651.03,0.3072055]
[1749424310371,1.09550498,651.94,651.03,0.3072055]
[1749424310571,1.09550498,651.93,651.03,0.3072055]
[1749424310873,1.09550498,651.92,651.03,0.3072055]
[1749424311175,0.26699197,651.98,651.03,0.3072055]
[1749424311375,1.09548747,651.97,651.03,0.3072055]
[1749424311569,1.09548747,651.96,651.03,0.3072055]
[1749424311774,1.09548747,651.95,651.03,0.3072055]
[1749424311972,1.09548747,651.94,651.03,0.3072055]
[1749424312173,1.09548747,651.93,651.03,0.3072055]
[1749424312372,1.09548747,651.92,651.03,0.3072055]
[1749424312573,0.26699197,651.98,651.03,0.3072055]
[1749424312769,1.09399894,651.97,651.03,0.3072055]
[1749424312970,1.035,651.91,651.03,0.3072055]
[1749424339998,1.30203602,651.91,651.03,0.3072055]
[1749424342794,1.30203602,651.91,651.12,3.78666608]
[1749424342998,1.30203602,651.91,651.13,0.30715832]
[1749424347798,1.035,651.91,651.13,0.30715832]
[1749424359202,1.035,651.91,651.14,3.78666608]
[1749424359406,1.035,651.91,651.15,0.30714889]
[1749424367013,0.26700528,652.01,651.15,0.30714889]
[1749424370823,0.907,652.0,651.15,0.30714889]
[1749424379522,1.98799251,652.0,651.15,0.30714889]
[1749424386829,1.08099251,652.0,651.15,0.30714889]
[1749424388424,0.26700528,652.01,651.15,0.30714889]
[1749424389932,0.871,652.0,651.15,0.30714889]
[1749424417040,0.871,652.0,651.15,4.09381497]
[1749424417641,0.871,652.0,651.16,3.78666608]
[1749424417943,0.871,652.0,651.17,0.30713945]
[1749424420646,0.871,652.0,651.17,4.09380553]
[1749424421245,1.07909881,651.99,651.17,4.09380553]
[1749424421444,0.871,652.0,651.17,4.09380553]
[1749424421647,1.07909968,651.99,651.17,4.09380553]
[1749424421843,0.871,652.0,651.17,4.09380553]
[1749424422044,1.0790952,651.99,651.17,4.09380553]
[1749424422243,0.871,652.0,651.17,4.09380553]
[1749424422444,1.07936997,651.99,651.18,3.78666608]
[1749424422644,1.07936854,651.98,651.19,0.30713002]
[1749424422848,0.871,652.0,651.19,0.30713002]
[1749424423046,1.07936859,651.99,651.19,0.30713002]
[1749424423249,1.07964691,651.98,651.2,3.78666608]
[1749424423449,0.871,652.0,651.21,0.30712059]
[1749424423650,1.07964226,651.99,651.21,0.30712059]
[1749424423850,1.07964226,651.98,651.21,0.30712059]
[1749424424047,0.871,652.0,651.21,0.30712059]
[1749424424350,1.0796536,651.99,651.21,0.30712059]
[1749424424549,1.0796536,651.98,651.21,0.30712059]
[1749424424749,0.871,652.0,651.21,0.30712059]
[1749424425150,1.07967931,651.99,651.21,0.30712059]
[1749424425348,0.871,652.0,651.21,0.30712059]
[1749424425551,1.07990819,651.99,651.21,0.30712059]
[1749424425850,0.871,652.0,651.21,0.30712059]
[1749424426048,1.07989725,651.99,651.21,0.30712059]
[1749424426252,1.07874409,651.98,651.21,0.30712059]
[1749424426453,0.871,652.0,651.21,0.30712059]
[1749424426653,1.078744,651.99,651.21,0.30712059]
[1749424426950,1.078744,651.98,651.21,0.30712059]
[1749424427148,0.871,652.0,651.21,0.30712059]
[1749424427350,1.07812635,651.99,651.21,0.30712059]
[1749424427553,1.07812635,651.98,651.21,0.30712059]
[1749424427854,0.871,652.0,651.21,0.30712059]
[1749424428150,1.07812603,651.99,651.21,0.30712059]
[1749424428350,1.07812603,651.98,651.21,0.30712059]
[1749424428550,0.871,652.0,651.21,0.30712059]
[1749424428851,1.07812753,651.99,651.21,0.30712059]
[1749424429049,1.07812753,651.98,651.21,0.30712059]
[1749424429253,0.871,652.0,651.21,0.30712059]
[1749424429455,1.07810019,651.99,651.21,0.30712059]
[1749424429653,1.07810019,651.98,651.21,0.30712059]
[1749424429952,0.871,652.0,651.21,0.30712059]
[1749424430150,1.07783463,651.99,651.21,0.30712059]
[1749424430451,1.07783463,651.98,651.21,0.30712059]
[1749424430649,0.871,652.0,651.21,0.30712059]
[1749424430849,1.07783133,651.99,651.21,0.30712059]
[1749424431055,1.07783133,651.98,651.21,0.30712059]
[1749424431351,0.871,652.0,651.21,0.30712059]
[1749424431554,1.07799205,651.99,651.21,0.30712059]
[1749424431752,1.07799205,651.98,651.21,0.30712059]
[1749424431955,0.871,652.0,651.21,0.30712059]
[1749424432255,1.07799073,651.99,651.21,0.30712059]
[1749424432452,1.07799073,651.98,651.21,0.30712059]
[1749424432657,0.871,652.0,651.21,0.30712059]
[1749424432858,0.26700528,652.01,651.21,0.30712059]
[1749424433153,1.07803641,652.0,651.21,4.09378667]
[1749424433354,0.26700528,652.01,651.21,4.09378667]
[1749424433558,1.07800462,652.0,651.21,4.09378667]
[1749424433859,0.26700528,652.01,651.21,4.09378667]
[1749424434055,0.26700528,652.01,651.22,3.78666608]
[1749424434259,0.26700528,652.01,651.23,0.30711115]
[1749424436059,0.63,652.0,651.23,0.30711115]
[1749424452769,0.63,652.0,651.23,4.09377723]
[1749424453171,0.63,652.0,651.23,0.30711115]
[1749424453568,0.63,652.0,651.23,4.09377723]
[1749424455774,0.63,652.0,651.24,3.78666608]
[1749424455974,0.63,652.0,651.25,0.30710172]
[1749424456473,0.63,652.0,651.25,4.0937678]
[1749424456674,0.63,652.0,651.25,0.30710172]
[1749424457175,0.63,652.0,651.25,4.0937678]
[1749424457976,0.63,652.0,651.26,3.78666608]
[1749424458177,0.63,652.0,651.27,0.30709229]
[1749424468886,0.63,652.0,651.32,3.78666608]
[1749424469188,0.63,652.0,651.33,0.307064]
[1749424476094,0.26695101,652.11,651.33,0.307064]
[1749424478491,0.948,652.1,651.33,0.307064]
[1749424522122,0.948,652.1,651.41,3.78666608]
[1749424522328,0.948,652.1,651.42,0.30702158]
[1749424523122,0.948,652.1,651.42,4.09368766]
[1749424523526,0.948,652.1,651.42,0.30702158]
[1749424523926,0.948,652.1,651.44,3.78666608]
[1749424525929,0.948,652.1,651.45,3.78666608]
[1749424532535,0.26693667,652.16,651.45,3.78666608]
[1749424536140,1.034,652.15,651.45,3.78666608]
[1749424537143,1.034,652.15,651.44,3.78666608]
[1749424540343,1.07586062,652.14,651.42,0.30702158]
[1749424540540,1.034,652.15,651.42,0.30702158]
[1749424540741,1.07604727,652.14,651.42,0.30702158]
[1749424540944,1.07604727,652.13,651.42,0.30702158]
[1749424541144,1.07604727,652.12,651.42,0.30702158]
[1749424541342,1.07604727,652.11,651.42,0.30702158]
[1749424541546,1.07604727,652.1,651.42,0.30702158]
[1749424541743,1.07604727,652.09,651.42,0.30702158]
[1749424541946,1.07604727,652.08,651.42,0.30702158]
[1749424542146,1.07604727,652.07,651.42,0.30702158]
[1749424542342,1.034,652.15,651.42,0.30702158]
[1749424542546,1.11247826,652.14,651.42,0.30702158]
[1749424542742,1.11247826,652.13,651.42,0.30702158]
[1749424542943,1.11247826,652.12,651.42,0.30702158]
[1749424543144,1.11247826,652.11,651.42,0.30702158]
[1749424543444,1.11247826,652.1,651.42,0.30702158]
[1749424543643,1.11247826,652.09,651.42,0.30702158]
[1749424543847,1.11247826,652.08,651.42,0.30702158]
[1749424544046,1.11247826,652.07,651.42,0.30702158]
[1749424544248,1.034,652.15,651.42,0.30702158]
[1749424544450,1.11196555,652.14,651.42,0.30702158]
[1749424544650,1.11196555,652.13,651.42,0.30702158]
[1749424544946,1.034,652.15,651.42,0.30702158]
[1749424544947,1.11196555,652.12,651.42,0.30702158]
[1749424545249,1.11196555,652.11,651.42,0.30702158]
[1749424545447,1.11196555,652.1,651.42,0.30702158]
[1749424545748,1.11196555,652.09,651.42,0.30702158]
[1749424545956,1.11196555,652.08,651.42,0.30702158]
[1749424546156,1.034,652.15,651.42,0.30702158]
[1749424546353,1.10927609,652.14,651.42,0.30702158]
[1749424546556,1.10927609,652.13,651.42,0.30702158]
[1749424546753,1.10927609,652.12,651.42,0.30702158]
[1749424546958,1.10927609,652.11,651.42,0.30702158]
[1749424547159,1.10927609,652.1,651.42,0.30702158]
[1749424547455,1.034,652.15,651.42,0.30702158]
[1749424547659,1.1090909,652.14,651.42,0.30702158]
[1749424547860,1.1090909,652.13,651.42,0.30702158]
[1749424548159,1.1090909,652.12,651.42,0.30702158]
[1749424548354,1.1090909,652.11,651.42,0.30702158]
[1749424548555,1.034,652.15,651.42,0.30702158]
[1749424548556,1.1090909,652.1,651.42,0.30702158]
[1749424548759,1.1090909,652.14,651.42,0.30702158]
[1749424549056,1.1090909,652.13,651.42,0.30702158]
[1749424549259,1.1090909,652.12,651.42,0.30702158]
[1749424549557,1.1090909,652.14,651.42,0.30702158]
[1749424549759,1.1090909,652.13,651.42,0.30702158]
[1749424549961,1.1090909,652.12,651.42,0.30702158]
[1749424550157,1.1090909,652.14,651.42,0.30702158]
[1749424550460,2.1430909,652.15,651.42,0.30702158]
[1749424551062,1.034,652.15,651.42,0.30702158]
[1749424551259,2.14238671,652.15,651.42,0.30702158]
[1749424552057,1.034,652.15,651.42,0.30702158]
[1749424555260,1.37532338,652.16,651.42,0.30702158]
[1749424555463,0.26693667,652.16,651.42,0.30702158]
[1749424558966,0.933,652.15,651.42,0.30702158]
[1749424581080,0.26698889,651.97,651.42,0.30702158]
[1749424606598,1.03,651.96,651.42,0.30702158]
[1749424656655,0.26694486,652.14,651.42,0.30702158]
[1749424660656,0.702,652.13,651.42,0.30702158]
[1749424684376,0.702,652.13,651.0,3.78666608]
[1749424684576,0.702,652.13,651.01,0.30721494]
[1749424685375,0.702,652.13,651.01,4.09388102]
[1749424685774,0.702,652.13,651.03,3.78666608]
[1749424685979,0.702,652.13,651.04,0.30720078]
[1749424686275,0.702,652.13,651.05,3.78666608]
[1749424686475,0.702,652.13,651.06,0.30719134]
[1749424686679,0.702,652.13,651.06,4.09385742]
[1749424687184,0.702,652.13,651.08,3.78666608]
[1749424687484,0.702,652.13,651.09,0.30717719]
[1749424688179,0.702,652.13,651.09,4.09384327]
[1749424688380,0.702,652.13,651.09,0.30717719]
[1749424698387,0.702,652.13,651.13,3.78666608]
[1749424698590,0.702,652.13,651.15,0.30714889]
[1749424699391,0.702,652.13,651.15,4.09381497]
[1749424699592,0.702,652.13,651.15,0.30714889]
[1749424709602,0.702,652.13,651.15,4.09381497]
[1749424710198,0.702,652.13,651.21,3.78666608]
[1749424710403,0.702,652.13,651.22,0.30711587]
[1749424711401,0.702,652.13,651.22,4.09378195]
[1749424712803,0.702,652.13,651.22,0.30711587]
[1749424715501,0.702,652.13,651.3,3.78666608]
[1749424716005,0.702,652.13,651.32,3.78666608]
[1749424716207,0.702,652.13,651.33,0.307064]
[1749424717601,0.26694486,652.14,651.33,0.307064]
[1749424720209,0.877,652.13,651.33,0.307064]
[1749424734016,0.877,652.13,651.4,3.78666608]
[1749424734211,0.877,652.13,651.41,0.30702629]
[1749424754734,0.877,652.13,651.5,3.78666608]
[1749424754935,0.877,652.13,651.51,0.30697917]
[1749424769045,0.877,652.13,651.59,3.78666608]
[1749424769247,0.877,652.13,651.6,0.30693677]
[1749424770542,0.877,652.13,651.6,4.09360285]
[1749424771948,0.877,652.13,651.61,3.78666608]
[1749424772247,0.877,652.13,651.62,0.30692735]
[1749424773749,0.877,652.13,651.62,4.09359343]
[1749424776248,1.22784962,652.44,651.62,4.09359343]
[1749424776450,1.22784962,652.44,651.62,0.30692735]
[1749424778950,0.774,652.43,651.62,0.30692735]
[1749424783354,0.774,652.43,651.62,4.09359343]
[1749424783656,0.774,652.43,651.63,3.78666608]
[1749424783854,0.774,652.43,651.64,0.30691793]
[1749424784057,0.774,652.43,651.64,4.09358401]
[1749424786058,0.774,652.43,651.66,3.78666608]
[1749424786253,0.774,652.43,651.66,4.09357459]
[1749424786756,0.774,652.43,651.67,3.78666608]
[1749424789456,0.774,652.43,651.68,3.78666608]
[1749424789959,0.774,652.43,651.66,0.30690851]
[1749424789960,0.774,652.43,651.66,4.09357459]
[1749424792063,0.774,652.43,651.67,3.78666608]
[1749424794461,0.774,652.43,651.68,3.78666608]
[1749424796964,0.774,652.43,651.69,3.78666608]
[1749424798666,0.774,652.43,651.7,3.78666608]
[1749424801963,0.774,652.43,651.71,3.78666608]
[1749424802463,0.26679649,652.39,651.71,3.78666608]
[1749424802767,0.26679649,652.39,651.72,3.78666608]
[1749424806463,0.26679649,652.39,651.73,3.78666608]
[1749424813872,0.26679649,652.39,651.74,3.78666608]
[1749424814975,0.26679649,652.39,651.73,3.78666608]
[1749424815877,0.26679649,652.39,651.74,3.78666608]
[1749424816073,0.26679649,652.39,651.75,3.78666608]
[1749424817579,0.26679649,652.39,651.76,3.78666608]
[1749424818476,0.26679649,652.39,651.77,3.78666608]
[1749424819779,0.26679649,652.39,651.78,3.78666608]
[1749424820180,0.26679649,652.39,651.77,3.78666608]
[1749424820679,0.26679649,652.39,651.74,3.78666608]
[1749424821081,0.26679649,652.39,651.66,0.30690851]
[1749424822380,0.811,652.38,651.66,0.30690851]
[1749424831090,0.811,652.38,651.72,3.78666608]
[1749424832289,0.811,652.38,651.66,0.30690851]
[1749424833390,0.811,652.38,651.71,3.78666608]
[1749424835086,0.811,652.38,651.7,3.78666608]
[1749424836387,0.811,652.38,651.69,3.78666608]
[1749424841794,0.811,652.38,651.68,3.78666608]
[1749424842391,0.811,652.38,651.78,3.78666608]
[1749424842891,0.811,652.38,651.77,3.78666608]
[1749424844190,0.811,652.38,651.75,3.78666608]
[1749424844997,0.811,652.38,651.76,3.78666608]
[1749424846392,0.811,652.38,651.78,3.78666608]
[1749424850498,0.811,652.38,651.76,3.78666608]
[1749424851299,0.811,652.38,651.78,3.78666608]
[1749424853704,0.811,652.38,651.79,0.30684729]
[1749424867117,0.811,652.38,651.79,4.09351337]
[1749424869819,0.811,652.38,651.82,3.78666608]
[1749424870416,0.811,652.38,651.79,4.09351337]
[1749424870719,0.811,652.38,651.79,0.30684729]
[1749424874519,0.26676683,652.53,651.79,0.30684729]
[1749424876224,0.26676683,652.53,651.79,4.09351337]
[1749424877421,0.26676683,652.53,651.79,0.30684729]
[1749424877823,0.932,652.52,651.79,0.30684729]
[1749424880122,0.932,652.52,651.81,3.78666608]
[1749424880723,0.932,652.52,651.8,3.78666608]
[1749424880923,0.932,652.52,651.8,4.09350866]
[1749424893231,0.932,652.52,651.8,0.30684258]
[1749424896833,0.932,652.52,651.81,3.78666608]
[1749424898139,0.932,652.52,651.8,0.30684258]
[1749424906040,0.26676683,652.53,651.8,0.30684258]
[1749424909048,1.128,652.52,651.8,0.30684258]
[1749424910844,1.128,652.52,651.8,4.09350866]
[1749424911245,1.128,652.52,651.8,0.30684258]
[1749424913744,1.07415879,652.51,651.8,0.30684258]
[1749424913946,1.07368939,652.5,651.8,0.30684258]
[1749424914149,1.128,652.52,651.8,0.30684258]
[1749424914349,1.0736861,652.51,651.8,0.30684258]
[1749424914545,1.0736861,652.5,651.8,0.30684258]
[1749424914747,1.128,652.52,651.8,0.30684258]
[1749424914944,1.07327572,652.51,651.8,0.30684258]
[1749424915146,1.128,652.52,651.8,0.30684258]
[1749424915347,1.07327368,652.51,651.8,0.30684258]
[1749424915648,1.128,652.52,651.8,0.30684258]
[1749424928060,0.26676683,652.53,651.8,0.30684258]
[1749424931165,0.904,652.52,651.8,0.30684258]
[1749424950077,1.98059573,652.52,651.8,0.30684258]
[1749424950478,1.07659573,652.51,651.8,0.30684258]
[1749424951078,0.904,652.52,651.8,0.30684258]
[1749424951276,0.26676683,652.53,651.8,0.30684258]
[1749424955180,1.207,652.52,651.8,0.30684258]
[1749424956781,1.207,652.52,651.87,2.29060314]
[1749424957183,1.207,652.52,651.89,2.29060314]
[1749424957883,1.207,652.52,651.8,0.30684258]
[1749424960690,2.28060676,652.52,651.8,0.30684258]
[1749424960890,1.07360676,652.51,651.8,0.30684258]
[1749424961089,1.07360676,652.5,651.8,0.30684258]
[1749424961289,1.07360676,652.49,651.8,0.30684258]
[1749424961490,1.07360676,652.48,651.8,0.30684258]
[1749424961785,1.07360676,652.47,651.8,0.30684258]
[1749424961989,1.07360676,652.46,651.8,0.30684258]
[1749424962190,1.07360676,652.45,651.46,3.78666608]
[1749424962489,1.207,652.52,651.46,3.78666608]
[1749424962490,1.07360676,652.44,651.46,4.09366881]
[1749424962685,1.07360676,652.51,651.46,0.30700273]
[1749424962885,1.07360676,652.5,651.46,0.30700273]
[1749424963087,1.07360676,652.49,651.46,0.30700273]
[1749424963288,1.07360676,652.48,651.46,0.30700273]
[1749424963484,1.07360676,652.47,651.46,0.30700273]
[1749424963685,1.07360676,652.46,651.46,0.30700273]
[1749424963886,1.07360676,652.45,651.46,0.30700273]
[1749424964087,1.207,652.52,651.46,0.30700273]
[1749424964286,1.08692414,652.51,651.46,0.30700273]
[1749424964487,1.08692414,652.5,651.46,0.30700273]
[1749424964687,1.08692414,652.49,651.46,0.30700273]
[1749424964888,1.08692414,652.48,651.46,0.30700273]
[1749424965093,1.08692414,652.47,651.46,0.30700273]
[1749424965387,1.207,652.52,651.46,0.30700273]
[1749424965388,1.08692414,652.46,651.46,0.30700273]
[1749424965591,1.08692414,652.45,651.46,0.30700273]
[1749424965788,1.08692414,652.44,651.46,0.30700273]
[1749424965989,1.207,652.52,651.46,0.30700273]
[1749424965990,1.08692414,652.43,651.46,0.30700273]
[1749424966189,1.08692414,652.42,651.46,0.30700273]
[1749424966390,1.08692414,652.41,651.46,0.30700273]
[1749424966587,1.08692414,652.4,651.46,0.30700273]
[1749424966887,1.08692414,652.39,651.46,0.30700273]
[1749424967189,1.08692414,652.38,651.46,0.30700273]
[1749424967492,1.08692414,652.51,651.46,0.30700273]
[1749424967693,1.08692414,652.5,651.46,0.30700273]
[1749424967888,1.08692414,652.49,651.46,0.30700273]
[1749424968090,1.08692414,652.48,651.46,0.30700273]
[1749424968289,1.08692414,652.47,651.46,0.30700273]
[1749424968491,1.08692414,652.46,651.46,0.30700273]
[1749424968692,1.08692414,652.45,651.46,0.30700273]
[1749424968889,1.08692414,652.44,651.46,0.30700273]
[1749424969089,1.08692414,652.43,651.46,0.30700273]
[1749424969288,1.207,652.52,651.46,0.30700273]
[1749424969289,1.08692414,652.42,651.46,0.30700273]
[1749424969493,1.08692414,652.41,651.46,0.30700273]
[1749424969787,1.08692414,652.51,651.46,0.30700273]
[1749424969992,1.08692414,652.5,651.46,0.30700273]
[1749424970290,1.08692414,652.49,651.46,0.30700273]
[1749424970495,1.08692414,652.48,651.46,0.30700273]
[1749424970694,1.08692414,652.47,651.46,0.30700273]
[1749424970893,1.08692414,652.46,651.46,0.30700273]
[1749424971092,1.08692414,652.45,651.46,0.30700273]
[1749424971293,1.08692414,652.44,651.46,0.30700273]
[1749424971490,1.08692414,652.43,651.46,0.30700273]
[1749424971694,1.08692414,652.42,651.46,0.30700273]
[1749424971991,1.08692414,652.41,651.46,0.30700273]
[1749424972195,1.08377834,652.52,651.46,0.30700273]
[1749424972396,1.08377834,652.51,651.46,0.30700273]
[1749424972597,1.08377834,652.5,651.46,0.30700273]
[1749424972794,1.08377834,652.49,651.46,0.30700273]
[1749424972997,1.08377834,652.48,651.46,0.30700273]
[1749424973198,1.08377834,652.47,651.46,0.30700273]
[1749424973399,1.08377834,652.46,651.46,0.30700273]
[1749424973599,1.08377834,652.45,651.46,0.30700273]
[1749424973793,1.303,652.49,651.46,0.30700273]
[1749424973794,1.08377834,652.44,651.46,0.30700273]
[1749424974094,1.08377834,652.48,651.46,0.30700273]
[1749424974295,1.08377834,652.47,651.46,0.30700273]
[1749424974494,1.08377834,652.46,651.46,0.30700273]
[1749424974695,1.08377834,652.45,651.46,0.30700273]
[1749424974998,1.08377834,652.48,651.46,0.30700273]
[1749424975195,1.08377834,652.47,651.46,0.30700273]
[1749424975397,1.08377834,652.46,651.46,0.30700273]
[1749424975601,1.08377834,652.48,651.46,0.30700273]
[1749424975800,1.08377834,652.47,651.46,0.30700273]
[1749424975997,1.08377834,652.46,651.46,0.30700273]
[1749424976296,1.08377834,652.48,651.46,0.30700273]
[1749424976502,1.08377834,652.47,651.46,0.30700273]
[1749424976798,1.08377834,652.46,651.46,0.30700273]
[1749424977097,1.08377834,652.45,651.46,0.30700273]
[1749424977303,1.08377834,652.48,651.46,0.30700273]
[1749424977502,1.08377834,652.47,651.46,0.30700273]
[1749424977801,1.08377834,652.46,651.46,0.30700273]
[1749424978003,1.08377834,652.48,651.46,0.30700273]
[1749424978302,1.08377834,652.47,651.46,0.30700273]
[1749424978504,1.08377834,652.46,651.46,0.30700273]
[1749424978701,1.08377834,652.48,651.46,0.30700273]
[1749424979004,1.08377834,652.47,651.46,0.30700273]
[1749424979203,1.08377834,652.46,651.46,0.30700273]
[1749424979405,1.08377834,652.48,651.46,0.30700273]
[1749424979701,1.08377834,652.47,651.46,0.30700273]
[1749424979905,1.08377834,652.46,651.46,0.30700273]
[1749424980103,1.08377834,652.48,651.46,0.30700273]
[1749424980301,1.08377834,652.47,651.46,0.30700273]
[1749424980507,1.08377834,652.46,651.46,0.30700273]
[1749424980804,1.08377834,652.45,651.46,0.30700273]
[1749424981003,1.08377834,652.44,651.46,0.30700273]
[1749424981206,1.08377834,652.43,651.46,0.30700273]
[1749424981404,1.08377834,652.42,651.46,0.30700273]
[1749424981603,1.08377834,652.41,651.46,0.30700273]
[1749424981804,1.08377834,652.4,651.46,0.30700273]
[1749424982004,1.08377834,652.48,651.46,0.30700273]
[1749424982209,1.08377834,652.47,651.46,0.30700273]
[1749424982404,1.08377834,652.46,651.46,0.30700273]
[1749424982605,1.08377834,652.45,651.46,0.30700273]
[1749424982806,1.08377834,652.44,651.46,0.30700273]
[1749424983005,1.08377834,652.43,651.46,0.30700273]
[1749424983310,1.08377834,652.42,651.46,0.30700273]
[1749424983506,1.08377834,652.41,651.46,0.30700273]
[1749424983706,1.08377834,652.48,651.46,0.30700273]
[1749424983906,1.08377834,652.47,651.46,0.30700273]
[1749424984107,1.08377834,652.46,651.46,0.30700273]
[1749424984305,1.08377834,652.45,651.46,0.30700273]
[1749424984610,1.08377834,652.44,651.46,0.30700273]
[1749424984810,1.08377834,652.43,651.46,0.30700273]
[1749424985010,1.08377834,652.42,651.46,0.30700273]
[1749424985306,1.08377834,652.41,651.46,0.30700273]
[1749424985506,1.08377834,652.48,651.46,0.30700273]
[1749424985710,1.08377834,652.47,651.46,0.30700273]
[1749424985906,1.08377834,652.46,651.46,0.30700273]
[1749424986109,1.08377834,652.45,651.46,0.30700273]
[1749424986311,1.08377834,652.44,651.46,0.30700273]
[1749424986605,1.08377834,652.43,651.46,0.30700273]
[1749424986810,1.08377834,652.42,651.46,0.30700273]
[1749424987106,1.08377834,652.41,651.46,0.30700273]
[1749424987310,1.08377834,652.4,651.46,0.30700273]
[1749424987510,1.08377834,652.39,651.46,0.30700273]
[1749424987707,1.08377834,652.38,651.46,0.30700273]
[1749424988009,1.08377834,652.37,651.46,0.30700273]
[1749424988210,1.08377834,652.36,651.46,0.30700273]
[1749424988407,1.08377834,652.48,651.46,0.30700273]
[1749424988611,1.08377834,652.47,651.46,0.30700273]
[1749424988911,1.08377834,652.46,651.46,0.30700273]
[1749424989111,1.08377834,652.45,651.46,0.30700273]
[1749424989309,1.08377834,652.44,651.46,0.30700273]
[1749424989607,1.08377834,652.43,651.46,0.30700273]
[1749424989809,1.08377834,652.42,651.46,0.30700273]
[1749424990106,1.08377834,652.41,651.46,0.30700273]
[1749424990310,1.08377834,652.4,651.46,0.30700273]
[1749424990508,1.08377834,652.39,651.46,0.30700273]
[1749424990708,1.08377834,652.38,651.46,0.30700273]
[1749424991006,1.08377834,652.37,651.46,0.30700273]
[1749424991205,1.08377834,652.36,651.46,0.30700273]
[1749424991507,1.08377834,652.35,651.46,0.30700273]
[1749424991807,1.08377834,652.34,651.46,0.30700273]
[1749424992106,1.08377834,652.33,651.46,0.30700273]
[1749424992409,2.31547089,652.46,651.46,0.30700273]
[1749424992608,1.08377834,652.45,651.46,0.30700273]